fUSD/lending_fUSD_20240104
["ID","MTS","AMOUNT","RATE_DAILY","PERIOD"]
[310228169,1704403877781,-500.0,0.00036712,2]
[310228170,1704403877792,-938.08,0.0003672,2]
[310228171,1704403877802,-156.25,0.00036724,2]
[310228172,1704403877813,-150.74109849,0.00036735,4]
[310228173,1704403877824,-1000.0,0.00036741,10]
[310228174,1704403877833,-1000.0,0.00036741,10]
[310228175,1704403877844,-1381.73700142,0.00036742,2]
[310228176,1704403877853,-153.02853765,0.00036754,14]
[310228177,1704403877863,-171.97540611,0.00036755,14]
[310228178,1704403877874,-153.84,0.00036757,2]
[310228179,1704403877884,-153.02853765,0.00036766,14]
[310228180,1704403877894,-171.97540611,0.00036768,14]
[310228181,1704403877904,-150.0,0.00036805,2]
[310228182,1704403877914,-150.0,0.00036836,2]
[310228183,1704403877924,-176.29,0.00036851,2]
[310228184,1704403877934,-500.0,0.00036862,7]
[310228185,1704403877945,-150.0,0.00036868,2]
[310228186,1704403877954,-150.0,0.00036886,2]
[310228187,1704403877965,-150.0,0.00036899,2]
[310228188,1704403877975,-150.0,0.000369,8]
[310228189,1704403877985,-2009.06,0.000369,2]
[310228190,1704403877995,-485.94431746,0.000369,10]
[310228191,1704403878006,-485.94431746,0.000369,10]
[310228192,1704403878018,-485.94431746,0.000369,10]
[310228193,1704403878028,-485.94431746,0.000369,10]
[310228194,1704403878039,-485.94431746,0.000369,10]
[310228195,1704403878049,-485.94431746,0.000369,10]
[310228196,1704403878059,-485.94431746,0.000369,10]
[310228197,1704403878071,-485.94431746,0.000369,10]
[310228198,1704403878082,-485.94431746,0.000369,10]
[310228199,1704403878095,-485.94431746,0.000369,10]
[310228200,1704403878106,-485.94431746,0.000369,10]
[310228201,1704403878181,-485.94431746,0.000369,10]
[310228202,1704403878192,-485.94431746,0.000369,10]
[310228203,1704403878201,-485.94431746,0.000369,10]
[310228204,1704403878210,-485.94431746,0.000369,10]
[310228205,1704403878222,-485.94431746,0.000369,10]
[310228206,1704403878231,-485.94431746,0.000369,10]
[310228207,1704403878242,-485.94431746,0.000369,10]
[310228208,1704403878252,-485.94431746,0.000369,10]
[310228209,1704403878262,-485.94,0.000369,10]
[310228210,1704403878273,-151.13710904,0.000369,10]
[310228211,1704403878282,-151.13710904,0.000369,10]
[310228212,1704403878292,-151.13710904,0.000369,10]
[310228213,1704403878303,-151.13710904,0.000369,10]
[310228214,1704403878313,-151.13710904,0.000369,10]
[310228215,1704403878323,-151.13710904,0.000369,10]
[310228216,1704403878332,-151.13710904,0.000369,10]
[310228217,1704403878343,-151.13710904,0.000369,10]
[310228218,1704403878353,-151.13710904,0.000369,10]
[310228219,1704403878364,-151.13710904,0.000369,10]
[310228220,1704403878375,-151.13710904,0.000369,10]
[310228221,1704403878386,-151.13710904,0.000369,10]
[310228222,1704403878396,-151.13710904,0.000369,10]
[310228223,1704403878406,-151.13710904,0.000369,10]
[310228224,1704403878416,-151.13710904,0.000369,10]
[310228225,1704403878426,-151.13710904,0.000369,10]
[310228226,1704403878437,-151.13710904,0.000369,10]
[310228227,1704403878448,-151.13710904,0.000369,10]
[310228228,1704403878458,-151.13,0.000369,10]
[310228229,1704403878472,-466.06081866,0.000369,10]
[310228230,1704403878483,-466.06081866,0.000369,10]
[310228231,1704403878493,-466.06081866,0.000369,10]
[310228232,1704403878504,-466.06081866,0.000369,10]
[310228233,1704403878514,-466.06081866,0.000369,10]
[310228234,1704403878525,-466.06081866,0.000369,10]
[310228235,1704403878536,-466.06081866,0.000369,10]
[310228236,1704403878547,-466.06081866,0.000369,10]
[310228237,1704403878558,-466.06081866,0.000369,10]
[310228238,1704403878569,-466.06081866,0.000369,10]
[310228239,1704403878579,-466.06081866,0.000369,10]
[310228240,1704403878589,-466.06081866,0.000369,10]
[310228241,1704403878599,-466.06081866,0.000369,10]
[310228242,1704403878610,-466.06081866,0.000369,10]
[310228243,1704403878619,-466.06081866,0.000369,10]
[310228244,1704403878628,-466.06081866,0.000369,10]
[310228245,1704403878638,-466.06081866,0.000369,10]
[310228246,1704403878647,-466.06081866,0.000369,10]
[310228247,1704403878656,-466.06081866,0.000369,10]
[310228248,1704403878666,-466.06,0.000369,10]
[310228249,1704403878676,-882.26492804,0.000369,2]
[310228250,1704403878687,-822.94540867,0.000369,10]
[310228251,1704403878697,-822.94540867,0.000369,10]
[310228252,1704403878708,-822.94540867,0.000369,10]
[310228253,1704403878721,-822.94540867,0.000369,10]
[310228254,1704403878731,-822.94540867,0.000369,10]
[310228255,1704403878740,-822.94540867,0.000369,10]
[310228256,1704403878749,-822.94540867,0.000369,10]
[310228257,1704403878759,-822.94540867,0.000369,10]
[310228258,1704403878768,-822.94540867,0.000369,10]
[310228259,1704403878777,-822.94540867,0.000369,10]
[310228260,1704403878787,-822.94540867,0.000369,10]
[310228261,1704403878796,-822.94540867,0.000369,10]
[310228262,1704403878805,-822.94540867,0.000369,10]
[310228263,1704403878814,-822.94540867,0.000369,10]
[310228264,1704403878823,-822.94540867,0.000369,10]
[310228265,1704403878833,-822.94540867,0.000369,10]
[310228266,1704403878842,-822.94540867,0.000369,10]
[310228267,1704403878851,-822.94540867,0.000369,10]
[310228268,1704403878860,-822.94540867,0.000369,10]
[310228269,1704403878869,-822.94,0.000369,10]
[310228270,1704403878879,-721.87199581,0.000369,10]
[310228271,1704403878888,-721.87199581,0.000369,10]
[310228272,1704403878898,-721.87199581,0.000369,10]
[310228273,1704403878907,-721.87199581,0.000369,10]
[310228274,1704403878916,-721.87199581,0.000369,10]
[310228275,1704403878925,-721.87199581,0.000369,10]
[310228276,1704403878934,-721.87199581,0.000369,10]
[310228277,1704403878945,-721.87199581,0.000369,10]
[310228278,1704403878954,-721.87199581,0.000369,10]
[310228279,1704403878963,-721.87199581,0.000369,10]
[310228280,1704403878972,-721.87199581,0.000369,10]
[310228281,1704403878981,-721.87199581,0.000369,10]
[310228282,1704403878990,-721.87199581,0.000369,10]
[310228283,1704403878999,-721.87199581,0.000369,10]
[310228284,1704403879008,-721.87199581,0.000369,10]
[310228285,1704403879017,-721.87199581,0.000369,10]
[310228286,1704403879026,-721.87199581,0.000369,10]
[310228287,1704403879035,-721.87199581,0.000369,10]
[310228288,1704403879044,-721.87199581,0.000369,10]
[310228289,1704403879052,-721.87,0.000369,10]
[310228290,1704403879061,-150.0,0.00036917,2]
[310228291,1704403879071,-171.97540611,0.00036924,14]
[310228292,1704403879080,-150.0,0.00036965,2]
[310228293,1704403879089,-150.0,0.00036967,2]
[310228294,1704403879097,-707.71,0.00036986,2]
[310228295,1704403879106,-323.56,0.00036986,2]
[310228296,1704403879115,-302.69466963,0.00036986,2]
[310228297,1704403879124,-500.0,0.00036986,2]
[310228298,1704403879133,-500.0,0.00036986,2]
[310228299,1704403879142,-500.0,0.00036986,2]
[310228300,1704403879151,-500.0,0.00036986,2]
[310228301,1704403879161,-500.0,0.00036986,2]
[310228302,1704403879170,-524.24,0.00036986,2]
[310228303,1704403879181,-500.0,0.00036986,2]
[310228304,1704403879190,-521.99,0.00036986,2]
[310228305,1704403879200,-500.0,0.00036986,2]
[310228306,1704403879209,-500.0,0.00036986,2]
[310228307,1704403879221,-3350.37,0.00036986,2]
[310228308,1704403879232,-896.02,0.00036986,2]
[310228309,1704403879242,-648.69,0.00036986,2]
[310228310,1704403879250,-2514.46,0.00036986,2]
[310228311,1704403879259,-1011.28,0.00036986,2]
[310228312,1704403879268,-500.0,0.00036986,2]
[310228313,1704403879278,-509.23,0.00036986,2]
[310228314,1704403879287,-500.0,0.00036986,2]
[310228315,1704403879296,-1318.19451,0.00036986,2]
[310228316,1704403879305,-2059.9,0.00036986,2]
[310228317,1704403879314,-500.0,0.00036986,2]
[310228318,1704403879323,-651.77,0.00036986,2]
[310228319,1704403879332,-500.0,0.00036986,2]
[310228320,1704403879341,-626.07,0.00036986,2]
[310228321,1704403879350,-529.91,0.00036986,2]
[310228322,1704403879360,-2064.33,0.00036986,2]
[310228323,1704403879370,-509.68,0.00036986,2]
[310228324,1704403879379,-1343.6,0.00036986,2]
[310228325,1704403879388,-711.75,0.00036986,2]
[310228326,1704403879397,-500.0,0.00036986,2]
[310228327,1704403879406,-500.0,0.00036986,2]
[310228328,1704403879415,-522.78,0.00036986,2]
[310228329,1704403879424,-1077.26,0.00036986,2]
[310228330,1704403879433,-1000.94,0.00036986,2]
[310228331,1704403879442,-500.0,0.00036986,2]
[310228332,1704403879451,-500.0,0.00036986,2]
[310228333,1704403879460,-982.47,0.00036986,2]
[310228334,1704403879472,-500.0,0.00036986,2]
[310228335,1704403879481,-5148.24,0.00036986,2]
[310228336,1704403879490,-500.0,0.00036986,2]
[310228337,1704403879499,-500.0,0.00036986,2]
[310228338,1704403879508,-615.48,0.00036986,2]
[310228339,1704403879518,-625.78,0.00036986,2]
[310228340,1704403879527,-281.7212287,0.00036986,2]
[310228341,1704403879537,-1193.24,0.00036986,2]
[310228342,1704403879546,-584.8,0.00036986,2]
[310228343,1704403879557,-679.5,0.00036986,2]
[310228344,1704403879567,-500.0,0.00036986,2]
[310228345,1704403879576,-813.68,0.00036986,2]
[310228346,1704403879585,-608.75,0.00036986,2]
[310228347,1704403879594,-941.49,0.00036986,2]
[310228348,1704403879602,-311.16331865,0.00036986,2]
[310228349,1704403879611,-984.08,0.00036986,2]
[310228350,1704403879621,-2418.73,0.00036986,2]
[310228351,1704403879630,-500.0,0.00036986,2]
[310228352,1704403879639,-859.09,0.00036986,2]
[310228353,1704403879648,-721.44,0.00036986,2]
[310228354,1704403879658,-2840.83,0.00036986,2]
[310228355,1704403879667,-837.99,0.00036986,2]
[310228356,1704403879677,-861.66,0.00036986,2]
[310228357,1704403879687,-721.44,0.00036986,2]
[310228358,1704403879696,-528.09,0.00036986,2]
[310228359,1704403879706,-853.51,0.00036986,2]
[310228360,1704403879716,-500.0,0.00036986,2]
[310228361,1704403879727,-500.0,0.00036986,2]
[310228362,1704403879737,-769.96,0.00036986,2]
[310228363,1704403879747,-500.0,0.00036986,2]
[310228364,1704403879758,-669.16,0.00036986,2]
[310228365,1704403879770,-500.0,0.00036986,2]
[310228366,1704403879781,-1213.39,0.00036986,2]
[310228367,1704403879790,-1401.12,0.00036986,2]
[310228368,1704403879799,-645.52,0.00036986,2]
[310228369,1704403879809,-500.0,0.00036986,2]
[310228370,1704403879818,-2121.42,0.00036986,2]
[310228371,1704403879829,-667.97,0.00036986,2]
[310228372,1704403879839,-810.45,0.00036986,2]
[310228373,1704403879849,-500.0,0.00036986,2]
[310228374,1704403879859,-620.6802381,0.00036999,4]
[310228375,1704403879870,-431.88937901,0.00036999,4]
[310228376,1704403879880,-392.90387419,0.00036999,4]
[310228377,1704403879890,-235.74232451,0.00036999,7]
[310228378,1704403879900,-259.13362741,0.00036999,7]
[310228379,1704403879911,-465.51017857,0.00036999,7]
[310228380,1704403879921,-180.0,0.00036999,4]
[310228381,1704403879931,-180.71081296,0.00036999,4]
[310228382,1704403879946,-180.0,0.00036999,4]
[310228383,1704403879956,-370.64345198,0.00036999,7]
[310228384,1704403879968,-500.0,0.00036999,4]
[310228385,1704403879978,-500.0,0.00036999,4]
[310228386,1704403879990,-400.0,0.00036999,4]
[310228387,1704403880003,-411.6716038,0.00036999,4]
[310228388,1704403880016,-240.0,0.00036999,7]
[310228389,1704403880027,-220.0,0.00036999,4]
[310228390,1704403880037,-500.0,0.00036999,7]
[310228391,1704403880047,-540.0,0.00036999,7]
[310228392,1704403880059,-500.0,0.00036999,7]
[310228393,1704403880070,-500.0,0.00036999,4]
[310228394,1704403880081,-500.0,0.00036999,7]
[310228395,1704403880092,-308.75370285,0.00036999,7]
[310228396,1704403880102,-500.0,0.00036999,4]
[310228397,1704403880112,-500.0,0.00036999,4]
[310228398,1704403880122,-500.0,0.00036999,4]
[310228399,1704403880133,-420.0,0.00036999,4]
[310228400,1704403880143,-167.50148114,0.00036999,4]
[310228401,1704403880154,-500.62611086,0.00036999,7]
[310228402,1704403880165,-500.0,0.00036999,4]
[310228403,1704403880175,-333.75074056,0.00036999,4]
[310228404,1704403880185,-500.0,0.00036999,4]
[310228405,1704403880196,-500.0,0.00036999,4]
[310228406,1704403880207,-500.0,0.00036999,4]
[310228407,1704403880219,-192.67156635,0.00036999,7]
[310228408,1704403880229,-256.8954218,0.00036999,4]
[310228409,1704403880239,-500.0,0.00036999,7]
[310228410,1704403880250,-500.0,0.00036999,7]
[310228411,1704403880260,-500.0,0.00036999,7]
[310228412,1704403880271,-499.99999999,0.00036999,4]
[310228413,1704403880282,-100000.0,0.00037,7]
[310228414,1704403880293,-213.0,0.00037,2]
[310228415,1704403880305,-308.92091342,0.00037,4]
[310228416,1704403880316,-700.17603033,0.00037,4]
[310228417,1704403880327,-4447185.80830587,0.00037,7]
[310228418,1704403880339,-1000.0,0.00037,3]
[310228419,1704403880350,-1000.0,0.00037,7]
[310228420,1704403880361,-300.0,0.00037,38]
[310228421,1704403880371,-500.0,0.00037,3]
[310228422,1704403880382,-761.346037,0.00037,12]
[310228423,1704403880393,-3952.303671,0.00037,5]
[310228424,1704403880402,-153.8,0.00037,3]
[310228425,1704403880413,-153.8,0.00037,3]
[310228426,1704403880424,-151.0,0.00037,7]
[310228427,1704403880434,-151.0,0.00037,7]
[310228428,1704403880445,-151.0,0.00037,7]
[310228429,1704403880456,-159.14,0.00037021,2]
[310228430,1704403880468,-5262.79,0.00037067,2]
[310228431,1704403880479,-2042.56,0.00037075,2]
[310228432,1704403880490,-150.0,0.000371,2]
[310228433,1704403880501,-1534.2792282,0.00037123,10]
[310228434,1704403880512,-416.99,0.00037131,2]
[310228435,1704403880523,-626.14,0.00037131,2]
[310228436,1704403880535,-171.97540611,0.00037134,14]
[310228437,1704403880546,-500.0,0.00037135,7]
[310228438,1704403880556,-150.0,0.00037136,2]
[310228439,1704403880567,-171.97540611,0.00037148,14]
[310228440,1704403880578,-171.97540611,0.00037149,14]
[310228441,1704403880590,-150.0,0.00037157,2]
[310228442,1704403880600,-6616.0,0.00037167,20]
[310228443,1704403880611,-578.0,0.00037182,20]
[310228444,1704403880620,-434.0,0.00037182,20]
[310228445,1704403880631,-3198.88,0.000372,7]
[310228446,1704403880642,-17397.0,0.000372,5]
[310228447,1704403880652,-153.02853765,0.0003722,14]
[310228448,1704403880663,-809.29907843,0.0003724,4]
[310228449,1704403880674,-707.71,0.0003726,2]
[310228450,1704403880685,-608.53,0.0003726,2]
[310228451,1704403880695,-500.0,0.0003726,2]
[310228452,1704403880705,-500.0,0.0003726,2]
[310228453,1704403880716,-500.0,0.0003726,2]
[310228454,1704403880727,-500.0,0.0003726,2]
[310228455,1704403880737,-524.24,0.0003726,2]
[310228456,1704403880747,-500.0,0.0003726,2]
[310228457,1704403880756,-521.99,0.0003726,2]
[310228458,1704403880766,-500.0,0.0003726,2]
[310228459,1704403880776,-216.99605434,0.0003726,2]
[310228460,1704403880786,-3350.37,0.0003726,2]
[310228461,1704403880795,-896.02,0.0003726,2]
[310228462,1704403880806,-648.69,0.0003726,2]
[310228463,1704403880815,-2514.46,0.0003726,2]
[310228464,1704403880825,-1011.28,0.0003726,2]
[310228465,1704403880834,-500.0,0.0003726,2]
[310228466,1704403880843,-509.23,0.0003726,2]
[310228467,1704403880854,-500.0,0.0003726,2]
[310228468,1704403880864,-2059.9,0.0003726,2]
[310228469,1704403880874,-500.0,0.0003726,2]
[310228470,1704403880884,-651.77,0.0003726,2]
[310228471,1704403880893,-618.6351841,0.0003726,2]
[310228472,1704403880904,-626.07,0.0003726,2]
[310228473,1704403880915,-529.91,0.0003726,2]
[310228474,1704403880924,-2064.33,0.0003726,2]
[310228475,1704403880936,-509.68,0.0003726,2]
[310228476,1704403880946,-1343.6,0.0003726,2]
[310228477,1704403880956,-711.75,0.0003726,2]
[310228478,1704403880969,-500.0,0.0003726,2]
[310228479,1704403880980,-317.23586339,0.0003726,2]
[310228480,1704403880990,-522.78,0.0003726,2]
[310228481,1704403881001,-1077.26,0.0003726,2]
[310228482,1704403881011,-1000.94,0.0003726,2]
[310228483,1704403881021,-500.0,0.0003726,2]
[310228484,1704403881032,-298.35,0.0003726,2]
[310228485,1704403881042,-982.47,0.0003726,2]
[310228486,1704403881052,-500.0,0.0003726,2]
[310228487,1704403881062,-5148.24,0.0003726,2]
[310228488,1704403881073,-500.0,0.0003726,2]
[310228489,1704403881084,-500.0,0.0003726,2]
[310228490,1704403881095,-615.48,0.0003726,2]
[310228491,1704403881106,-625.78,0.0003726,2]
[310228492,1704403881116,-1193.24,0.0003726,2]
[310228493,1704403881127,-584.8,0.0003726,2]
[310228494,1704403881137,-679.5,0.0003726,2]
[310228495,1704403881148,-506.39842184,0.0003726,2]
[310228496,1704403881159,-813.68,0.0003726,2]
[310228497,1704403881170,-608.75,0.0003726,2]
[310228498,1704403881181,-941.49,0.0003726,2]
[310228499,1704403881191,-984.08,0.0003726,2]
[310228500,1704403881202,-2418.73,0.0003726,2]
[310228501,1704403881215,-500.0,0.0003726,2]
[310228502,1704403881225,-721.44,0.0003726,2]
[310228503,1704403881235,-859.09,0.0003726,2]
[310228504,1704403881245,-2840.83,0.0003726,2]
[310228505,1704403881254,-837.99,0.0003726,2]
[310228506,1704403881264,-861.66,0.0003726,2]
[310228507,1704403881274,-721.44,0.0003726,2]
[310228508,1704403881283,-528.09,0.0003726,2]
[310228509,1704403881292,-853.51,0.0003726,2]
[310228510,1704403881302,-500.0,0.0003726,2]
[310228511,1704403881311,-500.0,0.0003726,2]
[310228512,1704403881322,-769.96,0.0003726,2]
[310228513,1704403881332,-500.0,0.0003726,2]
[310228514,1704403881342,-669.16,0.0003726,2]
[310228515,1704403881351,-500.0,0.0003726,2]
[310228516,1704403881361,-1213.39,0.0003726,2]
[310228517,1704403881371,-1401.12,0.0003726,2]
[310228518,1704403881381,-645.52,0.0003726,2]
[310228519,1704403881390,-500.0,0.0003726,2]
[310228520,1704403881400,-2121.42,0.0003726,2]
[310228521,1704403881410,-667.97,0.0003726,2]
[310228522,1704403881419,-810.45,0.0003726,2]
[310228523,1704403881429,-500.0,0.0003726,2]
[310228524,1704403881439,-1500.0,0.00037267,2]
[310228525,1704403881449,-151.36920846,0.00037273,14]
[310228526,1704403881459,-150.0,0.0003729,2]
[310228527,1704403881469,-150.0,0.000373,26]
[310228528,1704403881479,-171.97540611,0.00037319,14]
[310228529,1704403881489,-175.0,0.00037329,2]
[310228530,1704403881499,-150.0,0.00037333,2]
[310228531,1704403881509,-150.0,0.00037335,2]
[310228532,1704403881522,-150.0,0.0003736,2]
[310228533,1704403881532,-150.0,0.00037372,2]
[310228534,1704403881542,-153.02853765,0.00037381,14]
[310228535,1704403881553,-1381.73700142,0.00037385,2]
[310228536,1704403881563,-500.0,0.00037408,7]
[310228537,1704403881572,-150.0,0.00037412,2]
[310228538,1704403881582,-153.02853765,0.00037421,14]
[310228539,1704403881592,-150.0,0.00037437,2]
[310228540,1704403881602,-1500.0,0.00037455,2]
[310228541,1704403881612,-150.0,0.00037491,2]
[310228542,1704403881622,-150.0,0.00037502,2]
[310228543,1704403881632,-3608.6085319,0.00037513,2]
[310228544,1704403881643,-707.71,0.00037534,2]
[310228545,1704403881653,-558.71520051,0.00037534,2]
[310228546,1704403881664,-500.0,0.00037534,2]
[310228547,1704403881674,-500.0,0.00037534,2]
[310228548,1704403881684,-189.83419769,0.00037534,2]
[310228549,1704403881695,-524.24,0.00037534,2]
[310228550,1704403881705,-500.0,0.00037534,2]
[310228551,1704403881715,-521.99,0.00037534,2]
[310228552,1704403881726,-500.0,0.00037534,2]
[310228553,1704403881738,-3350.37,0.00037534,2]
[310228554,1704403881749,-896.02,0.00037534,2]
[310228555,1704403881761,-648.69,0.00037534,2]
[310228556,1704403881772,-2514.46,0.00037534,2]
[310228557,1704403881783,-1011.28,0.00037534,2]
[310228558,1704403881794,-366.26032504,0.00037534,2]
[310228559,1704403881806,-509.23,0.00037534,2]
[310228560,1704403881816,-500.0,0.00037534,2]
[310228561,1704403881826,-2059.9,0.00037534,2]
[310228562,1704403881837,-500.0,0.00037534,2]
[310228563,1704403881848,-651.77,0.00037534,2]
[310228564,1704403881863,-626.07,0.00037534,2]
[310228565,1704403881873,-529.91,0.00037534,2]
[310228566,1704403881884,-2064.33,0.00037534,2]
[310228567,1704403881896,-509.68,0.00037534,2]
[310228568,1704403881907,-1343.6,0.00037534,2]
[310228569,1704403881919,-711.75,0.00037534,2]
[310228570,1704403881932,-500.0,0.00037534,2]
[310228571,1704403881944,-522.78,0.00037534,2]
[310228572,1704403881955,-1077.26,0.00037534,2]
[310228573,1704403881966,-1000.94,0.00037534,2]
[310228574,1704403881977,-500.0,0.00037534,2]
[310228575,1704403881988,-982.47,0.00037534,2]
[310228576,1704403881999,-500.0,0.00037534,2]
[310228577,1704403882012,-5148.24,0.00037534,2]
[310228578,1704403882023,-500.0,0.00037534,2]
[310228579,1704403882034,-500.0,0.00037534,2]
[310228580,1704403882046,-615.48,0.00037534,2]
[310228581,1704403882057,-625.78,0.00037534,2]
[310228582,1704403882068,-1193.24,0.00037534,2]
[310228583,1704403882080,-584.8,0.00037534,2]
[310228584,1704403882091,-679.5,0.00037534,2]
[310228585,1704403882104,-813.68,0.00037534,2]
[310228586,1704403882115,-608.75,0.00037534,2]
[310228587,1704403882127,-941.49,0.00037534,2]
[310228588,1704403882139,-984.08,0.00037534,2]
[310228589,1704403882323,-500.0,0.00037534,2]
[310228590,1704403882333,-2418.73,0.00037534,2]
[310228591,1704403882346,-721.44,0.00037534,2]
[310228592,1704403882357,-859.09,0.00037534,2]
[310228593,1704403882368,-2840.83,0.00037534,2]
[310228594,1704403882379,-837.99,0.00037534,2]
[310228595,1704403882391,-861.66,0.00037534,2]
[310228596,1704403882402,-721.44,0.00037534,2]
[310228597,1704403882412,-528.09,0.00037534,2]
[310228598,1704403882422,-853.51,0.00037534,2]
[310228599,1704403882433,-500.0,0.00037534,2]
[310228600,1704403882444,-500.0,0.00037534,2]
[310228601,1704403882455,-769.96,0.00037534,2]
[310228602,1704403882466,-500.0,0.00037534,2]
[310228603,1704403882477,-669.16,0.00037534,2]
[310228604,1704403882486,-500.0,0.00037534,2]
[310228605,1704403882496,-1213.39,0.00037534,2]
[310228606,1704403882505,-1401.12,0.00037534,2]
[310228607,1704403882515,-645.52,0.00037534,2]
[310228608,1704403882525,-500.0,0.00037534,2]
[310228609,1704403882535,-2121.42,0.00037534,2]
[310228610,1704403882546,-667.97,0.00037534,2]
[310228611,1704403882556,-810.45,0.00037534,2]
[310228612,1704403882566,-167.0,0.00037542,2]
[310228613,1704403882577,-150.0,0.00037543,2]
[310228614,1704403882587,-1534.2792282,0.00037545,10]
[310228615,1704403882596,-6616.0,0.0003755,20]
[310228616,1704403882605,-578.0,0.00037562,20]
[310228617,1704403882615,-434.0,0.00037562,20]
[310228618,1704403882626,-174.00751121,0.00037567,14]
[310228619,1704403882636,-153.02853765,0.00037577,14]
[310228620,1704403882646,-150.0,0.00037579,2]
[310228621,1704403882655,-150.0,0.00037616,2]
[310228622,1704403882665,-150.0,0.00037616,2]
[310228623,1704403882675,-150.0,0.00037649,2]
[310228624,1704403882684,-150.0,0.00037668,2]
[310228625,1704403882693,-1318.19452,0.0003768,2]
[310228626,1704403882704,-500.0,0.00037681,7]
[310228627,1704403882716,-3198.88,0.000377,7]
[310228628,1704403882727,-150.0,0.0003775,2]
[310228629,1704403882738,-151.34491591,0.00037772,14]
[310228630,1704403882750,-156.25,0.00037778,2]
[310228631,1704403882760,-153.84,0.00037778,2]
[310228632,1704403882770,-150.0,0.00037791,2]
[310228633,1704403882780,-171.97540611,0.00037797,14]
[310228634,1704403882790,-1967.08892496,0.000378,7]
[310228635,1704403882801,-150.0,0.000378,27]
[310228636,1704403882813,-5180.515325,0.000378,2]
[310228637,1704403882822,-707.71,0.00037808,2]
[310228638,1704403882831,-351.58,0.00037808,2]
[310228639,1704403882841,-500.0,0.00037808,2]
[310228640,1704403882851,-524.24,0.00037808,2]
[310228641,1704403882861,-500.0,0.00037808,2]
[310228642,1704403882871,-521.99,0.00037808,2]
[310228643,1704403882882,-500.0,0.00037808,2]
[310228644,1704403882892,-3350.37,0.00037808,2]
[310228645,1704403882902,-896.02,0.00037808,2]
[310228646,1704403882912,-648.69,0.00037808,2]
[310228647,1704403882921,-2514.46,0.00037808,2]
[310228648,1704403882931,-1011.28,0.00037808,2]
[310228649,1704403882941,-509.23,0.00037808,2]
[310228650,1704403882953,-500.0,0.00037808,2]
[310228651,1704403882963,-2059.9,0.00037808,2]
[310228652,1704403882973,-500.0,0.00037808,2]
[310228653,1704403882986,-651.77,0.00037808,2]
[310228654,1704403882996,-626.07,0.00037808,2]
[310228655,1704403883005,-529.91,0.00037808,2]
[310228656,1704403883015,-2064.33,0.00037808,2]
[310228657,1704403883026,-509.68,0.00037808,2]
[310228658,1704403883038,-1343.6,0.00037808,2]
[310228659,1704403883048,-711.75,0.00037808,2]
[310228660,1704403883059,-500.0,0.00037808,2]
[310228661,1704403883069,-522.78,0.00037808,2]
[310228662,1704403883079,-1077.26,0.00037808,2]
[310228663,1704403883090,-1000.94,0.00037808,2]
[310228664,1704403883100,-500.0,0.00037808,2]
[310228665,1704403883112,-982.47,0.00037808,2]
[310228666,1704403883122,-500.0,0.00037808,2]
[310228667,1704403883132,-5148.24,0.00037808,2]
[310228668,1704403883144,-500.0,0.00037808,2]